bitfinex/quotes_BTCUSD_20241107
["timestamp","ask_amount","ask_price","bid_price","bid_amount"]
[1731007834058,0.04,76202.0,76174.0,0.19677938]
[1731007834262,0.20570117,76202.0,76182.0,0.19677938]
[1731007835144,0.017,76195.0,76182.0,0.19677938]
[1731007835345,0.14724102,76195.0,76182.0,0.19677938]
[1731007836287,0.12848902,76195.0,76182.0,0.19677938]
[1731007836509,0.12848902,76195.0,76175.0,0.005]
[1731007837083,0.13048902,76195.0,76175.0,0.005]
[1731007837415,0.12848902,76195.0,76175.0,0.1]
[1731007837805,0.12848902,76195.0,76174.0,0.20177938]
[1731007838069,0.002,76214.0,76189.0,0.005]
[1731007838240,0.5,76281.0,76188.0,0.005]
[1731007838241,0.19677938,76217.0,76194.0,0.006484]
[1731007838442,0.19677938,76207.0,76199.0,0.005]
[1731007838825,0.19677938,76217.0,76199.0,0.005]
[1731007839249,0.19677938,76207.0,76199.0,0.005]
[1731007839451,0.13224102,76206.0,76195.0,0.005]
[1731007839703,0.13224102,76206.0,76194.0,0.101484]
[1731007839926,0.13224102,76206.0,76194.0,0.001484]
[1731007840116,0.1514905,76203.0,76194.0,0.001484]
[1731007840344,0.13224102,76202.0,76194.0,0.001484]
[1731007841206,0.1514905,76197.0,76194.0,0.001484]
[1731007841416,0.13224102,76196.0,76194.0,0.001484]
[1731007842034,0.002,76195.0,76194.0,0.001484]
[1731007842375,0.13224102,76195.0,76194.0,0.001484]
[1731007844355,0.15724102,76195.0,76194.0,0.001484]
[1731007844579,0.025,76194.0,76192.0,0.001484]
[1731007844805,0.15724102,76194.0,76192.0,0.001484]
[1731007845029,0.13224102,76194.0,76192.0,0.001484]
[1731007845476,0.03485936,76195.0,76192.0,0.001484]
[1731007845713,0.16710038,76195.0,76192.0,0.001484]
[1731007845940,0.13224102,76195.0,76192.0,0.001484]
[1731007846654,0.03440699,76204.0,76192.0,0.001484]
[1731007846883,0.13224102,76203.0,76192.0,0.001484]
[1731007847102,0.0016445,76208.0,76192.0,0.001484]
[1731007847322,0.19677938,76207.0,76197.0,0.005]
[1731007847576,0.19677938,76207.0,76194.0,0.005]
[1731007847577,0.0016445,76208.0,76204.0,0.005]
[1731007847813,0.19677938,76207.0,76204.0,0.005]
[1731007848045,0.0016445,76208.0,76204.0,0.005]
[1731007848693,0.0016445,76208.0,76206.0,0.005]
[1731007848918,0.0016445,76208.0,76207.0,0.01262427]
[1731007849194,0.0016445,76208.0,76207.0,0.01762427]
[1731007849621,0.0016445,76208.0,76207.0,0.015]
[1731007851162,0.0016445,76208.0,76207.0,0.01762414]
[1731007851349,0.0016445,76208.0,76207.0,0.015]
[1731007851853,0.17442388,76216.0,76213.0,0.01]
[1731007852071,0.19677938,76227.0,76215.0,0.005]
[1731007852299,0.19677938,76227.0,76213.0,0.01]
[1731007852300,0.19677938,76219.0,76217.0,0.005]
[1731007852515,0.19677938,76227.0,76217.0,0.005]
[1731007853403,0.3290204,76227.0,76214.0,0.005]
[1731007853611,0.13224102,76226.0,76213.0,0.005]
[1731007854038,0.15985125,76226.0,76209.0,0.1]
[1731007854524,0.15985125,76226.0,76209.0,0.005]
[1731007854736,0.13224102,76226.0,76209.0,0.005]
[1731007855408,0.13224102,76226.0,76211.0,0.105]
[1731007855593,0.19677938,76225.0,76211.0,0.105]
[1731007855841,0.20677938,76236.0,76214.0,0.005]
[1731007856061,0.19677938,76228.0,76219.0,0.005]
[1731007856491,0.3290204,76228.0,76219.0,0.005]
[1731007856775,0.23077041,76236.0,76219.0,0.005]
[1731007856987,0.13224102,76235.0,76219.0,0.005]
[1731007857664,0.03399103,76236.0,76224.0,0.005]
[1731007857887,0.19677938,76244.0,76236.0,0.005]
[1731007858121,0.19677938,76244.0,76239.0,0.005]
[1731007858340,0.19677938,76244.0,76237.0,0.005]
[1731007858805,0.000835,76249.0,76237.0,0.005]
[1731007858806,0.000835,76249.0,76239.0,0.005]
[1731007859053,0.000835,76249.0,76244.0,0.005]
[1731007859525,0.000835,76249.0,76245.0,0.01]
[1731007859740,0.000835,76249.0,76248.0,0.015]
[1731007859961,0.000835,76249.0,76248.0,0.0176227]
[1731007860603,0.000835,76249.0,76248.0,0.01]
[1731007860829,0.000835,76249.0,76248.0,0.005]
[1731007861496,0.000835,76249.0,76248.0,0.01]
[1731007861743,0.000835,76249.0,76248.0,0.015]
[1731007862044,0.000835,76249.0,76248.0,0.2498639]
[1731007862273,0.000835,76249.0,76248.0,0.26973256]
[1731007862674,0.000835,76249.0,76248.0,0.26710968]
[1731007862879,0.000835,76249.0,76248.0,0.269732]
[1731007863296,0.19677938,76268.0,76248.0,0.269732]
[1731007863297,0.19677938,76268.0,76267.0,0.015]
[1731007863502,0.19677938,76268.0,76267.0,0.46995631]
[1731007863715,0.19677938,76284.0,76283.0,0.005]
[1731007864335,0.000743,76285.0,76280.0,0.005]
[1731007864575,0.000743,76285.0,76279.0,0.005]
[1731007865191,0.000743,76285.0,76283.0,0.005]
[1731007865394,0.000743,76285.0,76284.0,0.01262165]
[1731007865606,0.000743,76285.0,76284.0,0.24724102]
[1731007866220,0.000743,76285.0,76284.0,0.115]
[1731007866626,0.000743,76285.0,76284.0,0.015]
[1731007867524,0.000743,76285.0,76284.0,0.24986252]
[1731007867736,0.000743,76285.0,76284.0,0.26406372]
[1731007867945,0.000743,76285.0,76284.0,0.27344222]
[1731007868152,0.000743,76285.0,76284.0,0.27906326]
[1731007868562,0.000743,76303.0,76299.0,0.33771529]
[1731007868765,0.000743,76303.0,76299.0,0.46995631]
[1731007868971,0.000743,76303.0,76302.0,0.01]
[1731007869177,0.000743,76303.0,76302.0,0.14224102]
[1731007869532,0.000743,76303.0,76302.0,0.24224102]
[1731007869767,0.000743,76303.0,76302.0,0.115]
[1731007869971,0.000743,76303.0,76302.0,0.14846952]
[1731007870554,0.000743,76303.0,76302.0,0.04846952]
[1731007872834,0.17519038,76314.0,76302.0,0.01]
[1731007873034,0.17519038,76314.0,76304.0,0.01]
[1731007873253,0.000743,76323.0,76315.0,0.005]
[1731007873453,0.19677938,76318.0,76316.0,0.005]
[1731007873669,0.000743,76323.0,76318.0,0.005]
[1731007874720,0.000743,76323.0,76318.0,0.01762048]
[1731007874881,0.000743,76323.0,76318.0,0.28350519]
[1731007875141,0.000743,76323.0,76318.0,0.2498615]
[1731007875787,0.000743,76323.0,76318.0,0.2846376]
[1731007875991,0.000743,76323.0,76318.0,0.29355608]
[1731007876194,0.000743,76323.0,76318.0,0.28201712]
[1731007876399,0.000743,76323.0,76318.0,0.0497761]
[1731007877032,0.000743,76323.0,76318.0,0.0347761]
[1731007877292,0.000743,76323.0,76316.0,0.005]
[1731007878189,0.000743,76323.0,76318.0,0.005]
[1731007878606,0.000743,76323.0,76318.0,0.01]
[1731007878814,0.000743,76323.0,76318.0,0.24986128]
[1731007879152,0.000743,76323.0,76318.0,0.24724102]
[1731007879566,0.000743,76323.0,76318.0,0.01]
[1731007879794,0.000743,76323.0,76318.0,0.015]
[1731007880017,0.000743,76323.0,76318.0,0.04125]
[1731007880223,0.000743,76323.0,76318.0,0.015]
[1731007881082,0.000743,76323.0,76311.0,0.03943056]
[1731007881495,0.000743,76323.0,76313.0,0.005]
[1731007882132,0.000743,76323.0,76311.0,0.005]
[1731007882425,0.000743,76323.0,76309.0,0.03835362]
[1731007882623,0.13224102,76318.0,76304.0,0.005]
[1731007882813,0.13224102,76318.0,76303.0,0.005]
[1731007883008,0.19677938,76317.0,76303.0,0.005]
[1731007883236,0.12724102,76316.0,76298.0,0.03377777]
[1731007883447,0.12724102,76316.0,76300.0,0.19677938]
[1731007883647,0.12724102,76316.0,76292.0,0.2309163]
[1731007883856,0.002,76312.0,76292.0,0.2309163]
[1731007884072,0.13224102,76311.0,76292.0,0.2309163]
[1731007884490,0.13224102,76311.0,76295.0,0.005]
[1731007884691,0.19677938,76309.0,76295.0,0.005]
[1731007884954,0.023,76307.0,76281.0,0.005]
[1731007885159,0.13224102,76306.0,76292.0,0.19677938]
[1731007885360,0.13224102,76306.0,76285.0,0.005]
[1731007885361,0.19677938,76316.0,76302.0,0.005]
[1731007885565,0.19677938,76316.0,76301.0,0.005]
[1731007886493,0.13224102,76315.0,76302.0,0.19677938]
[1731007888237,0.13224102,76315.0,76302.0,0.23022848]
[1731007888441,0.000742,76319.0,76302.0,0.23522848]
[1731007888654,0.000742,76319.0,76308.0,0.005]
[1731007888858,0.19677938,76318.0,76308.0,0.005]
[1731007889067,0.002,76317.0,76303.0,0.1]
[1731007889265,0.3290204,76318.0,76303.0,0.1]
[1731007889266,0.13224102,76316.0,76305.0,0.005]
[1731007889480,0.000742,76319.0,76305.0,0.005]
[1731007889697,0.000742,76319.0,76308.0,0.005]
[1731007889942,0.3290204,76318.0,76302.0,0.0384491]
[1731007890144,0.13224102,76318.0,76304.0,0.1]
[1731007890724,0.13224102,76318.0,76305.0,0.005]
[1731007891520,0.19677938,76316.0,76305.0,0.01]
[1731007891719,0.13224102,76315.0,76305.0,0.005]
[1731007891917,0.000742,76319.0,76312.0,0.005]
[1731007892334,0.000742,76319.0,76315.0,0.005]
[1731007892564,0.000742,76319.0,76318.0,0.005]
[1731007893144,0.000742,76319.0,76314.0,0.005]
[1731007893756,0.000742,76319.0,76311.0,0.03366078]
[1731007893980,0.000742,76319.0,76309.0,0.1]
[1731007894184,0.000742,76319.0,76314.0,0.000834]
[1731007894986,0.13224102,76318.0,76314.0,0.000834]
[1731007895229,0.13224102,76318.0,76302.0,0.19677938]
[1731007895230,0.023,76317.0,76302.0,0.19677938]
[1731007895450,0.22271529,76312.0,76302.0,0.19677938]
[1731007895680,0.023,76310.0,76302.0,0.19677938]
[1731007895935,0.13224102,76309.0,76302.0,0.19677938]
[1731007896372,0.023,76308.0,76294.0,0.19677938]
[1731007896600,0.023,76306.0,76295.0,0.19677938]
[1731007896825,0.023,76304.0,76295.0,0.19677938]
[1731007897099,0.13224102,76303.0,76295.0,0.19677938]
[1731007897519,0.13224102,76303.0,76284.0,0.20677938]
[1731007897676,0.13424102,76303.0,76292.0,0.19677938]
[1731007897880,0.13424102,76303.0,76285.0,0.1]
[1731007898182,0.023,76299.0,76287.0,0.19677938]
[1731007898392,0.023,76297.0,76287.0,0.19677938]
[1731007898541,0.023,76295.0,76287.0,0.19677938]
[1731007898905,0.13224102,76294.0,76287.0,0.19677938]
[1731007899127,0.03374631,76303.0,76287.0,0.19677938]
[1731007899379,0.13224102,76303.0,76287.0,0.20177938]
[1731007899594,0.1,76325.0,76287.0,0.20177938]
[1731007899595,0.002742,76319.0,76293.0,0.005]
[1731007899798,0.002742,76319.0,76288.0,0.11093808]
[1731007899799,0.19677938,76302.0,76288.0,0.105]
[1731007899999,0.21645732,76311.0,76292.0,0.19677938]
[1731007900000,0.13224102,76301.0,76292.0,0.19677938]
[1731007900637,0.13224102,76301.0,76289.0,0.01]
[1731007900828,0.13224102,76301.0,76291.0,0.1]
[1731007902151,0.13224102,76301.0,76289.0,0.01]
[1731007902594,0.13224102,76301.0,76291.0,0.1]
[1731007902815,0.000742,76319.0,76291.0,0.1]
[1731007902816,0.023742,76319.0,76291.0,0.105]
[1731007903045,0.19677938,76294.0,76291.0,0.1]
[1731007903255,0.13224102,76294.0,76292.0,0.19677938]
[1731007903459,0.13224102,76294.0,76284.0,0.19677938]
[1731007904090,0.13224102,76294.0,76280.0,0.005]
[1731007904292,0.002,76297.0,76276.0,0.1]
[1731007904293,0.19787812,76293.0,76276.0,0.005]
[1731007904425,0.18465402,76293.0,76276.0,0.005]
[1731007905211,0.18465402,76293.0,76275.0,0.20177938]
[1731007905414,0.18465402,76293.0,76283.0,0.19677938]
[1731007905564,0.18465402,76293.0,76277.0,0.005]
[1731007905992,0.18465402,76293.0,76284.0,0.000834]
[1731007907793,0.13224102,76293.0,76284.0,0.000834]
[1731007907992,0.005242,76292.0,76284.0,0.00043791]
[1731007908361,0.13224102,76291.0,76284.0,0.00043791]
[1731007908926,0.005242,76292.0,76285.0,0.19677938]
[1731007909132,0.005242,76292.0,76286.0,0.01]
[1731007909337,0.19677938,76310.0,76289.0,0.005]
[1731007909538,0.14224102,76309.0,76296.0,0.005]
[1731007909949,0.01,76309.0,76301.0,0.005]
[1731007910292,0.01,76309.0,76287.0,0.19940077]
[1731007910293,0.005239,76313.0,76306.0,0.005]
[1731007910492,0.19677938,76311.0,76297.0,0.005]
[1731007910681,0.13224102,76310.0,76298.0,0.19677938]
[1731007911382,0.19677938,76309.0,76292.0,0.005]
[1731007911593,0.023,76306.0,76284.0,0.0348632]
[1731007911823,0.002,76300.0,76295.0,0.19677938]
[1731007912025,0.002,76300.0,76284.0,0.0348632]
[1731007912026,0.023,76298.0,76284.0,0.00043791]
[1731007912230,0.13224102,76297.0,76284.0,0.00043791]
[1731007912686,0.13224102,76297.0,76284.0,0.00543791]
[1731007912914,0.13224102,76297.0,76285.0,0.01]
[1731007913563,0.023,76309.0,76289.0,0.005]
[1731007913728,0.19677938,76301.0,76289.0,0.005]
[1731007914053,0.13224102,76300.0,76289.0,0.005]
[1731007914257,0.13224102,76300.0,76284.0,0.00043791]
[1731007914557,0.023,76299.0,76284.0,0.00043791]
[1731007914764,0.002,76291.0,76285.0,0.19677938]
[1731007915434,0.15524102,76285.0,76284.0,0.00043791]
[1731007916072,0.18995037,76285.0,76284.0,0.00043791]
[1731007916885,0.20894541,76285.0,76284.0,0.00043791]
[1731007917087,0.18995037,76285.0,76284.0,0.00043791]
[1731007918363,0.19195037,76285.0,76284.0,0.00043791]
[1731007919471,0.023,76272.0,76265.0,0.19677938]
[1731007919685,0.13224102,76271.0,76265.0,0.19677938]
[1731007919905,0.22271529,76276.0,76249.0,0.20177938]
[1731007919906,0.002,76255.0,76249.0,0.19677938]
[1731007920118,0.06099563,76270.0,76249.0,0.19677938]
[1731007920119,0.13224102,76254.0,76249.0,0.19677938]
[1731007920554,0.13224102,76254.0,76239.0,0.19677938]
[1731007920555,0.13224102,76254.0,76240.0,0.005]
[1731007921191,0.13224102,76254.0,76239.0,0.20177938]
[1731007921401,0.13224102,76254.0,76240.0,0.005]
[1731007921615,0.13224102,76254.0,76237.0,0.006484]
[1731007921616,0.19677938,76253.0,76237.0,0.011484]
[1731007921820,0.13224102,76252.0,76237.0,0.011484]
[1731007923195,0.13224102,76252.0,76237.0,0.001484]
[1731007924013,0.41949467,76253.0,76237.0,0.001484]
[1731007924014,0.19677938,76244.0,76237.0,0.001484]
[1731007924210,0.22271529,76245.0,76237.0,0.001484]
[1731007924211,0.15524102,76243.0,76237.0,0.001484]
[1731007924465,0.37995631,76238.0,76237.0,0.001484]
[1731007924689,0.002,76235.0,76216.0,0.000835]
[1731007924899,0.023,76233.0,76216.0,0.000835]
[1731007925111,0.13224102,76232.0,76216.0,0.000835]
[1731007925318,0.023,76231.0,76216.0,0.000835]
[1731007925563,0.002,76241.0,76216.0,0.000835]
[1731007925564,0.13224102,76230.0,76221.0,0.005]
[1731007925769,0.023,76243.0,76225.0,0.005]
[1731007926023,0.19677938,76236.0,76228.0,0.005]
[1731007926231,0.13224102,76242.0,76228.0,0.005]
[1731007926232,0.13224102,76242.0,76229.0,0.005]
[1731007926431,0.01368775,76259.0,76237.0,0.01]
[1731007926653,0.01368775,76259.0,76241.0,0.005]
[1731007926840,0.19877938,76253.0,76235.0,0.005]
[1731007927141,0.3290204,76244.0,76234.0,0.005]
[1731007927346,0.3290204,76244.0,76223.0,0.20177938]
[1731007927347,0.36192244,76244.0,76223.0,0.20177938]
[1731007927578,0.36192244,76244.0,76225.0,0.005]
[1731007927854,0.023,76243.0,76226.0,0.005]
[1731007928083,0.13224102,76242.0,76237.0,0.000834]
[1731007928463,0.023,76238.0,76237.0,0.000834]
[1731007928663,0.21600479,76238.0,76237.0,0.000834]
[1731007929003,0.21800479,76238.0,76237.0,0.000834]
[1731007929199,0.25242769,76238.0,76237.0,0.000834]
[1731007929466,0.25042769,76238.0,76237.0,0.000834]
[1731007930712,0.002,76224.0,76220.0,0.19677938]
[1731007930912,0.22271529,76221.0,76220.0,0.19677938]
[1731007931117,0.35495631,76221.0,76217.0,0.001484]
[1731007931329,0.13224102,76220.0,76217.0,0.001484]
[1731007933867,0.19677938,76236.0,76217.0,0.001484]
[1731007934064,0.3290204,76235.0,76223.0,0.005]
[1731007934279,0.3290204,76235.0,76226.0,0.005]
[1731007934471,0.3290204,76235.0,76227.0,0.005]
[1731007935033,0.03479051,76240.0,76227.0,0.005]
[1731007935233,0.13224102,76240.0,76232.0,0.005]
[1731007936703,0.13224102,76239.0,76231.0,0.005]
[1731007937142,0.19677938,76243.0,76234.0,0.005]
[1731007937361,0.13224102,76242.0,76234.0,0.005]
[1731007938030,0.0349618,76249.0,76234.0,0.005]
[1731007938031,0.0349618,76249.0,76238.0,0.005]
[1731007938263,0.0349618,76249.0,76226.0,0.29677938]
[1731007938264,0.6953,76248.0,76247.0,0.015]
[1731007938491,0.19677938,76252.0,76251.0,0.015]
[1731007938492,0.89207938,76252.0,76251.0,0.015]
[1731007938693,0.6953,76252.0,76251.0,0.015]
[1731007940244,0.6953,76252.0,76251.0,0.11]
[1731007940757,0.6953,76252.0,76237.0,0.000834]
[1731007940758,0.6903,76248.0,76245.0,0.005]
[1731007940975,0.82254102,76247.0,76237.0,0.000834]
[1731007941221,0.023,76245.0,76237.0,0.000834]
[1731007941446,0.13224102,76244.0,76237.0,0.000834]
[1731007949516,0.19677938,76238.0,76237.0,0.000834]
[1731007949744,0.13224102,76238.0,76237.0,0.000834]
[1731007950413,0.15524102,76238.0,76237.0,0.000834]
[1731007953046,0.15722047,76238.0,76237.0,0.000834]
[1731007953531,0.15522047,76238.0,76237.0,0.000834]
[1731007953920,0.15688847,76238.0,76237.0,0.000834]
[1731007955845,0.13388847,76238.0,76237.0,0.000834]
[1731007960149,0.15688847,76238.0,76237.0,0.000834]
[1731007960391,0.15888847,76238.0,76237.0,0.000834]
[1731007960606,0.15880347,76238.0,76237.0,0.000834]
[1731007960828,0.24571529,76228.0,76227.0,0.000834]
[1731007961124,0.37795631,76228.0,76227.0,0.000834]
[1731007962203,0.37995631,76228.0,76227.0,0.000834]
[1731007962380,0.37795631,76228.0,76227.0,0.000834]
[1731007962826,0.13224102,76228.0,76227.0,0.000834]
[1731007964044,0.42492899,76228.0,76227.0,0.000834]
[1731007964264,0.42692899,76228.0,76227.0,0.000834]
[1731007964620,0.42681686,76228.0,76227.0,0.000834]
[1731007964829,0.43181686,76228.0,76227.0,0.000834]
[1731007965034,0.42981686,76228.0,76227.0,0.000834]
[1731007965201,0.41659276,76228.0,76227.0,0.000834]
[1731007965397,0.41859276,76228.0,76227.0,0.000834]
[1731007965591,0.41659276,76228.0,76227.0,0.000834]
[1731007966070,0.41859276,76228.0,76227.0,0.000834]
[1731007966648,0.41659276,76228.0,76227.0,0.000834]
[1731007967571,0.45845204,76228.0,76227.0,0.000834]
[1731007968732,0.41659276,76228.0,76227.0,0.000834]
[1731007969597,0.18885881,76228.0,76227.0,0.000834]
[1731007970497,0.4115741,76228.0,76227.0,0.000834]
[1731007972320,0.18885881,76228.0,76227.0,0.000834]
[1731007972539,0.4135741,76228.0,76227.0,0.000834]
[1731007972852,0.45993151,76228.0,76227.0,0.000834]
[1731007973615,0.55993151,76228.0,76227.0,0.000834]
[1731007974457,0.55993151,76228.0,76216.0,0.000835]
[1731007974458,0.007,76218.0,76216.0,0.000835]
[1731007974652,0.36195631,76218.0,76216.0,0.000835]
[1731007975065,0.38495631,76218.0,76216.0,0.000835]
[1731007975266,0.42115194,76218.0,76216.0,0.000835]
[1731007975701,0.42115194,76218.0,76191.0,0.0004]
[1731007975702,0.002,76203.0,76191.0,0.0004]
[1731007975908,0.15724102,76203.0,76191.0,0.0004]
[1731007976415,0.24571529,76193.0,76191.0,0.0004]
[1731007976619,0.15524102,76193.0,76191.0,0.0004]
[1731007977800,0.19026379,76193.0,76191.0,0.0004]
[1731007979514,0.16726379,76193.0,76191.0,0.0004]
[1731007979735,0.13224102,76193.0,76191.0,0.0004]
[1731007980199,0.22271529,76208.0,76191.0,0.0054]
[1731007980445,0.13224102,76207.0,76199.0,0.005]
[1731007980664,0.19677938,76221.0,76201.0,0.005]
[1731007980893,0.19677938,76208.0,76204.0,0.005]
[1731007981096,0.13224102,76220.0,76204.0,0.005]
[1731007981294,0.19677938,76213.0,76204.0,0.005]
[1731007981521,0.13224102,76212.0,76204.0,0.005]
[1731007981716,0.13224102,76212.0,76205.0,0.005]
[1731007983724,0.13224102,76212.0,76205.0,0.0025]
[1731007988500,0.13224102,76212.0,76205.0,0.003334]
[1731007990359,0.19677938,76221.0,76210.0,0.0075]
[1731007990478,0.13224102,76220.0,76210.0,0.0075]
[1731007990704,0.13224102,76220.0,76210.0,0.0025]
[1731007990900,0.13224102,76220.0,76205.0,0.000834]
[1731007990901,0.19677938,76213.0,76205.0,0.000834]
[1731007991243,0.15524102,76212.0,76205.0,0.000834]
[1731007992063,0.13224102,76212.0,76205.0,0.000834]
[1731007992222,0.0350059,76221.0,76210.0,0.0025]
[1731007992421,0.3290204,76220.0,76210.0,0.0075]
[1731007992842,0.13224102,76220.0,76210.0,0.0075]
[1731007993490,0.13224102,76220.0,76211.0,0.0025]
[1731007993688,0.13224102,76220.0,76210.0,0.005]
[1731007993689,0.13224102,76220.0,76213.0,0.0025]
[1731007996576,0.19677938,76218.0,76208.0,0.0025]
[1731007996779,0.13224102,76217.0,76208.0,0.0025]
[1731007996982,0.13224102,76217.0,76209.0,0.0025]
[1731007998007,0.13224102,76217.0,76208.0,0.0025]
[1731007998726,0.13224102,76217.0,76206.0,0.0025]
[1731007999249,0.13224102,76217.0,76205.0,0.000834]
[1731007999449,0.023,76214.0,76205.0,0.000834]
[1731007999647,0.023,76212.0,76206.0,0.0025]
[1731007999850,0.13224102,76211.0,76206.0,0.0025]
[1731008000431,0.19677938,76207.0,76206.0,0.0025]
[1731008000630,0.19677938,76207.0,76205.0,0.000834]
[1731008000631,0.13224102,76207.0,76205.0,0.000834]
[1731008000843,0.00167,76220.0,76205.0,0.000834]
[1731008000844,0.13224102,76206.0,76205.0,0.000834]
[1731008003482,0.00167,76220.0,76210.0,0.005]
[1731008003694,0.00167,76220.0,76205.0,0.000834]
[1731008003695,0.00167,76220.0,76219.0,0.0025]
[1731008003904,0.00167,76220.0,76219.0,0.24474102]
[1731008004116,0.007502,76266.0,76237.0,0.0075]
[1731008004326,0.007502,76266.0,76237.0,0.13974102]
[1731008004537,0.001668,76266.0,76246.0,0.0125]
[1731008004747,0.001668,76266.0,76255.0,0.0075]
[1731008004960,0.001668,76266.0,76255.0,0.47757698]
[1731008005171,0.001668,76266.0,76265.0,0.0125]
[1731008005606,0.001668,76266.0,76265.0,0.01512209]
[1731008006028,0.001668,76266.0,76265.0,0.0075]
[1731008006648,0.001668,76266.0,76265.0,0.03349578]
[1731008006775,0.001668,76266.0,76256.0,0.105]
[1731008007010,0.001668,76266.0,76258.0,0.1]
[1731008007205,0.001668,76266.0,76259.0,0.1]
[1731008007642,0.001668,76266.0,76260.0,0.00262222]
[1731008008053,0.001668,76266.0,76259.0,0.1]
[1731008008433,0.001668,76266.0,76256.0,0.03510257]
[1731008008627,0.001668,76266.0,76254.0,0.005]
[1731008008830,0.001668,76266.0,76256.0,0.1]
[1731008009265,0.001668,76266.0,76240.0,0.005]
[1731008009266,0.19677938,76264.0,76240.0,0.005]
[1731008009476,0.00328963,76264.0,76250.0,0.03494497]
[1731008009851,0.19677938,76263.0,76243.0,0.005]
[1731008010049,0.001668,76266.0,76250.0,0.00671037]
[1731008010254,0.001668,76266.0,76249.0,0.19677938]
[1731008010255,0.19677938,76256.0,76251.0,0.35769933]
[1731008010458,0.19677938,76264.0,76251.0,0.13224102]
[1731008010681,0.19677938,76264.0,76252.0,0.1]
[1731008011100,0.22024271,76264.0,76247.0,0.005]
[1731008011310,0.00328963,76261.0,76244.0,0.19677938]
[1731008011544,0.001668,76266.0,76251.0,0.1]
[1731008011776,0.19677938,76260.0,76251.0,0.1]
[1731008012636,0.00328963,76262.0,76243.0,0.2994021]
[1731008012858,0.19677938,76260.0,76243.0,0.23224102]
[1731008013328,0.19677938,76260.0,76242.0,0.22283596]
[1731008013551,0.19677938,76260.0,76243.0,0.1]
[1731008014703,0.19677938,76252.0,76235.0,0.1]
[1731008014905,0.00328963,76256.0,76237.0,0.1]
[1731008015113,0.00328963,76256.0,76241.0,0.1]
[1731008015325,0.19677938,76252.0,76242.0,0.00262292]
[1731008016656,0.19677938,76252.0,76243.0,0.00262292]
[1731008016869,0.19677938,76252.0,76239.0,0.00262291]
[1731008017303,0.19677938,76260.0,76240.0,0.13224102]
[1731008017526,0.19677938,76260.0,76251.0,0.1]
[1731008017721,0.00167,76264.0,76263.0,0.00671037]
[1731008017833,0.19677938,76280.0,76263.0,0.00671037]
[1731008017834,0.19677938,76280.0,76271.0,0.32283596]
[1731008018034,0.19677938,76280.0,76271.0,0.33154633]
[1731008018239,0.19677938,76280.0,76277.0,0.005]
[1731008018445,0.19677938,76280.0,76279.0,0.22283596]
[1731008018730,0.19677938,76280.0,76279.0,0.32283596]
[1731008018934,0.000743,76297.0,76280.0,0.1]
[1731008019086,0.000743,76297.0,76281.0,0.00262154]
[1731008019255,0.000743,76297.0,76281.0,0.13486256]
[1731008019485,0.000743,76297.0,76283.0,0.00171037]
[1731008019696,0.000743,76297.0,76284.0,0.13657277]
[1731008019907,0.000743,76297.0,76285.0,0.10171037]
[1731008020113,0.19677938,76292.0,76285.0,0.1]
[1731008020321,0.000743,76297.0,76285.0,0.1]
[1731008020768,0.19677938,76293.0,76285.0,0.1]
[1731008021170,0.19677938,76293.0,76278.0,0.0394296]
[1731008021370,0.19677938,76293.0,76280.0,0.1]
[1731008022421,0.000743,76297.0,76295.0,0.00171037]
[1731008022599,0.000743,76305.0,76304.0,0.00871037]
[1731008022795,0.000743,76305.0,76304.0,0.46178735]
[1731008023408,0.000743,76305.0,76304.0,0.1]
[1731008023786,0.000743,76305.0,76294.0,0.00762088]
[1731008023995,0.000743,76305.0,76296.0,0.1]
[1731008024200,0.000743,76305.0,76296.0,0.23224102]
[1731008024630,0.000743,76305.0,76297.0,0.00262088]
[1731008025241,0.000743,76305.0,76293.0,0.005]
[1731008025484,0.000743,76305.0,76295.0,0.1]
[1731008025688,0.000743,76305.0,76295.0,0.23224102]
[1731008026236,0.19677938,76304.0,76295.0,0.1]
[1731008026485,0.19677938,76304.0,76285.0,0.00171037]
[1731008026486,0.19677938,76304.0,76288.0,0.29677938]
[1731008026685,0.000743,76305.0,76290.0,0.1]
[1731008026892,0.19677938,76296.0,76290.0,0.1]
[1731008027272,0.19677938,76304.0,76265.0,0.002]
[1731008027273,0.00328963,76290.0,76277.0,0.19677938]
[1731008027591,0.00328963,76290.0,76269.0,0.20177938]
[1731008027592,0.00328963,76288.0,76278.0,0.19677938]
[1731008027786,0.00328963,76288.0,76278.0,0.03065278]
[1731008027991,0.00328963,76288.0,76270.0,0.00262179]
[1731008027992,0.00328963,76288.0,76279.0,0.03065278]
[1731008028192,0.00328963,76288.0,76269.0,0.19677938]
[1731008028398,0.00328963,76288.0,76270.0,0.1]
[1731008028647,0.19677938,76286.0,76271.0,0.03065278]
[1731008028795,0.00828963,76283.0,76256.0,0.00171037]
[1731008029007,0.00828963,76283.0,76262.0,0.19677938]
[1731008029008,0.00328963,76278.0,76262.0,0.19677938]
[1731008029367,0.00328963,76278.0,76263.0,0.03065278]
[1731008029599,0.00328963,76278.0,76264.0,0.00262214]
[1731008030009,0.19677938,76277.0,76265.0,0.01958724]
[1731008030416,0.19666206,76277.0,76265.0,0.01958724]
[1731008030706,0.19666206,76277.0,76257.0,0.005]
[1731008030999,0.19666206,76277.0,76261.0,0.1]
[1731008032097,0.19677938,76262.0,76252.0,0.000834]
[1731008032308,0.005,76253.0,76252.0,0.000834]
[1731008032722,0.00328963,76256.0,76252.0,0.000834]
[1731008032891,0.005,76263.0,76252.0,0.000834]
[1731008033095,0.20006901,76268.0,76252.0,0.000834]
[1731008033096,0.00328963,76267.0,76252.0,0.000834]
[1731008033294,0.19677938,76260.0,76252.0,0.000834]
[1731008033499,0.005,76263.0,76252.0,0.000834]
[1731008033677,0.19677938,76268.0,76252.0,0.000834]
[1731008033875,0.19677938,76268.0,76253.0,0.1]